fUST/lending_fUST_20250520
["ID","MTS","AMOUNT","RATE_DAILY","PERIOD"]
[361736283,1747738259593,-153.51173176,0.00019452,2]
[361736284,1747738259602,-158.28077,0.00019469,2]
[361736285,1747738259612,-153.0,0.00019489,2]
[361736286,1747738259622,-153.0,0.00019489,2]
[361736287,1747738259631,-153.0,0.00019489,2]
[361736288,1747738259641,-153.0,0.00019489,2]
[361736289,1747738259650,-153.0,0.00019489,2]
[361736290,1747738259660,-153.0,0.00019489,2]
[361736291,1747738259670,-153.0,0.00019489,2]
[361736292,1747738259679,-153.0,0.00019489,2]
[361736293,1747738259689,-153.0,0.00019489,2]
[361736294,1747738259699,-153.0,0.00019489,2]
[361736295,1747738259708,-153.0,0.00019489,2]
[361736296,1747738259718,-153.0,0.00019489,2]
[361736297,1747738259727,-153.0,0.00019489,2]
[361736298,1747738259737,-153.0,0.00019489,2]
[361736299,1747738259746,-153.0,0.00019489,2]
[361736300,1747738259756,-153.0,0.00019489,2]
[361736301,1747738259766,-153.0,0.00019489,2]
[361736302,1747738259776,-153.0,0.00019489,2]
[361736303,1747738259786,-153.0,0.00019489,2]
[361736304,1747738259796,-153.0,0.00019489,2]
[361736305,1747738259806,-153.0,0.00019489,2]
[361736306,1747738259815,-153.0,0.00019489,2]
[361736307,1747738259825,-153.0,0.00019489,2]
[361736308,1747738259835,-153.0,0.00019489,2]
[361736309,1747738259844,-153.0,0.00019489,2]
[361736310,1747738259854,-153.0,0.00019489,2]
[361736311,1747738259863,-153.0,0.00019489,2]
[361736312,1747738259876,-153.0,0.00019489,2]
[361736313,1747738259888,-153.0,0.00019489,2]
[361736314,1747738259897,-153.0,0.00019489,2]
[361736315,1747738259907,-153.0,0.00019489,2]
[361736316,1747738259918,-153.0,0.00019489,2]
[361736317,1747738259928,-153.0,0.00019489,2]
[361736318,1747738259938,-153.0,0.00019489,2]
[361736319,1747738259948,-153.0,0.00019489,2]
[361736320,1747738259960,-153.0,0.00019489,2]
[361736321,1747738259970,-153.0,0.00019489,2]
[361736322,1747738259980,-153.0,0.00019489,2]
[361736323,1747738259990,-153.0,0.00019489,2]
[361736324,1747738259999,-153.0,0.00019489,2]
[361736325,1747738260009,-153.0,0.00019489,2]
[361736326,1747738260019,-153.0,0.00019489,2]
[361736327,1747738260030,-153.0,0.00019489,2]
[361736328,1747738260040,-153.0,0.00019489,2]
[361736329,1747738260051,-153.0,0.00019489,2]
[361736330,1747738260061,-153.0,0.00019489,2]
[361736331,1747738260071,-153.0,0.00019489,2]
[361736332,1747738260081,-153.0,0.00019489,2]
[361736333,1747738260092,-153.0,0.00019489,2]
[361736334,1747738260102,-153.0,0.00019489,2]
[361736335,1747738260113,-153.0,0.00019489,2]
[361736336,1747738260124,-153.0,0.00019489,2]
[361736337,1747738260135,-153.0,0.00019489,2]
[361736338,1747738260147,-153.0,0.00019489,2]
[361736339,1747738260158,-153.0,0.00019489,2]
[361736340,1747738260170,-153.0,0.00019489,2]
[361736341,1747738260181,-153.0,0.00019489,2]
[361736342,1747738260192,-153.0,0.00019489,2]
[361736343,1747738260202,-153.0,0.00019489,2]
[361736344,1747738260212,-153.0,0.00019489,2]
[361736345,1747738260222,-153.0,0.00019489,2]
[361736346,1747738260231,-153.0,0.00019489,2]
[361736347,1747738260242,-153.0,0.00019489,2]
[361736348,1747738260252,-153.0,0.00019489,2]
[361736349,1747738260262,-153.0,0.00019489,2]
[361736350,1747738260272,-153.0,0.00019489,2]
[361736351,1747738260282,-153.0,0.00019489,2]
[361736352,1747738260291,-153.0,0.00019489,2]
[361736353,1747738260300,-153.0,0.00019489,2]
[361736354,1747738260310,-153.0,0.00019489,2]
[361736355,1747738260320,-153.0,0.00019489,2]
[361736356,1747738260329,-153.0,0.00019489,2]
[361736357,1747738260339,-153.0,0.00019489,2]
[361736358,1747738260349,-153.0,0.00019489,2]
[361736359,1747738260358,-153.0,0.00019489,2]
[361736360,1747738260368,-153.0,0.00019489,2]
[361736361,1747738260377,-153.0,0.00019489,2]
[361736362,1747738260386,-153.0,0.00019489,2]
[361736363,1747738260395,-153.0,0.00019489,2]
[361736364,1747738260405,-153.0,0.00019489,2]
[361736365,1747738260414,-153.0,0.00019489,2]
[361736366,1747738260423,-153.0,0.00019489,2]
[361736367,1747738260432,-153.0,0.00019489,2]
[361736368,1747738260442,-153.0,0.00019489,2]
[361736369,1747738260451,-153.0,0.00019489,2]
[361736370,1747738260460,-153.0,0.00019489,2]
[361736371,1747738260470,-153.0,0.00019489,2]
[361736372,1747738260479,-153.0,0.00019489,2]
[361736373,1747738260488,-153.0,0.00019489,2]
[361736374,1747738260498,-153.0,0.00019489,2]
[361736375,1747738260508,-153.0,0.00019489,2]
[361736376,1747738260518,-153.0,0.00019489,2]
[361736377,1747738260527,-153.0,0.00019491,2]
[361736378,1747738260537,-153.0,0.00019491,2]
[361736379,1747738260546,-153.0,0.00019491,2]
[361736380,1747738260556,-153.0,0.00019491,2]
[361736381,1747738260565,-153.0,0.00019491,2]
[361736382,1747738260574,-153.0,0.00019491,2]
[361736383,1747738260584,-153.0,0.00019491,2]
[361736384,1747738260593,-153.0,0.00019491,2]
[361736385,1747738260603,-153.0,0.00019491,2]
[361736386,1747738260613,-153.0,0.00019491,2]
[361736387,1747738260623,-153.0,0.00019491,2]
[361736388,1747738260632,-153.0,0.00019491,2]
[361736389,1747738260641,-153.0,0.00019491,2]
[361736390,1747738260651,-153.0,0.00019491,2]
[361736391,1747738260660,-153.0,0.00019491,2]
[361736392,1747738260669,-153.0,0.00019491,2]
[361736393,1747738260679,-153.0,0.00019491,2]
[361736394,1747738260688,-153.0,0.00019491,2]
[361736395,1747738260698,-153.0,0.00019491,2]
[361736396,1747738260708,-153.0,0.00019491,2]
[361736397,1747738260717,-153.0,0.00019491,2]
[361736398,1747738260726,-153.0,0.00019491,2]
[361736399,1747738260735,-153.0,0.00019491,2]
[361736400,1747738260744,-153.0,0.00019491,2]
[361736401,1747738260754,-153.0,0.00019491,2]
[361736402,1747738260763,-153.0,0.00019491,2]
[361736403,1747738260772,-153.0,0.00019491,2]
[361736404,1747738260781,-153.0,0.00019491,2]
[361736405,1747738260790,-153.0,0.00019491,2]
[361736406,1747738260800,-153.0,0.00019491,2]
[361736407,1747738260809,-153.0,0.00019491,2]
[361736408,1747738260818,-153.0,0.00019491,2]
[361736409,1747738260827,-153.0,0.00019491,2]
[361736410,1747738260836,-153.0,0.00019491,2]
[361736411,1747738260846,-153.0,0.00019491,2]
[361736412,1747738260972,-153.0,0.00019491,2]
[361736413,1747738260982,-153.0,0.00019491,2]
[361736414,1747738260992,-153.0,0.00019491,2]
[361736415,1747738261002,-2500.0,0.00019498,3]
[361736416,1747738261011,-587.0,0.00019586,2]
[361736417,1747738261021,-78176.36224632,0.000196,7]
[361736418,1747738261030,-160.0,0.00019623,4]
[361736419,1747738261041,-164.054303,0.00019632,4]
[361736420,1747738261051,-499.999999,0.0001965,2]
[361736421,1747738261060,-14441.76249022,0.00019693,2]
[361736422,1747738261069,-430.0,0.00019726,2]
[361736423,1747738261079,-430.0,0.00019726,2]
[361736424,1747738261088,-567.85242019,0.00019726,2]
[361736425,1747738261098,-430.0,0.00019726,2]
[361736426,1747738261108,-430.0,0.00019726,2]
[361736427,1747738261118,-430.0,0.00019726,2]
[361736428,1747738261127,-215.8688732,0.00019726,2]
[361736429,1747738261137,-430.0,0.00019726,2]
[361736430,1747738261146,-404.2175724,0.00019726,2]
[361736431,1747738261156,-430.0,0.00019726,2]
[361736432,1747738261165,-430.0,0.00019726,2]
[361736433,1747738261174,-1776.74,0.00019726,2]
[361736434,1747738261184,-3412.88,0.00019726,2]
[361736435,1747738261193,-520.16,0.00019726,2]
[361736436,1747738261203,-1930.13,0.00019726,2]
[361736437,1747738261212,-432.02534034,0.00019726,2]
[361736438,1747738261221,-1061.63,0.00019726,2]
[361736439,1747738261231,-603.79,0.00019726,2]
[361736440,1747738261240,-506.36,0.00019726,2]
[361736441,1747738261249,-1753.15,0.00019726,2]
[361736442,1747738261260,-1305.03,0.00019726,2]
[361736443,1747738261269,-430.0,0.00019726,2]
[361736444,1747738261278,-691.23,0.00019726,2]
[361736445,1747738261288,-1148.42,0.00019726,2]
[361736446,1747738261297,-572.24,0.00019726,2]
[361736447,1747738261307,-2306.53,0.00019726,2]
[361736448,1747738261318,-430.0,0.00019726,2]
[361736449,1747738261327,-582.21,0.00019726,2]
[361736450,1747738261336,-430.0,0.00019726,2]
[361736451,1747738261346,-430.0,0.00019726,2]
[361736452,1747738261357,-869.16,0.00019726,2]
[361736453,1747738261366,-1275.53,0.00019726,2]
[361736454,1747738261375,-596.79,0.00019726,2]
[361736455,1747738261386,-430.0,0.00019726,2]
[361736456,1747738261397,-958.75,0.00019726,2]
[361736457,1747738261408,-430.0,0.00019726,2]
[361736458,1747738261418,-1444.05,0.00019726,2]
[361736459,1747738261428,-430.0,0.00019726,2]
[361736460,1747738261438,-812.17,0.00019726,2]
[361736461,1747738261448,-573.94,0.00019726,2]
[361736462,1747738261457,-852.85,0.00019726,2]
[361736463,1747738261467,-594.94,0.00019726,2]
[361736464,1747738261478,-1179.22,0.00019726,2]
[361736465,1747738261488,-660.64,0.00019726,2]
[361736466,1747738261499,-451.17,0.00019726,2]
[361736467,1747738261509,-1760.65,0.00019726,2]
[361736468,1747738261519,-447.88,0.00019726,2]
[361736469,1747738261529,-731.84,0.00019726,2]
[361736470,1747738261539,-476.44,0.00019726,2]
[361736471,1747738261548,-430.0,0.00019726,2]
[361736472,1747738261558,-1820.69,0.00019726,2]
[361736473,1747738261568,-872.77,0.00019726,2]
[361736474,1747738261579,-4745.31,0.00019726,2]
[361736475,1747738261588,-527.01,0.00019726,2]
[361736476,1747738261597,-5627.3,0.00019726,2]
[361736477,1747738261608,-430.0,0.00019726,2]
[361736478,1747738261618,-430.0,0.00019726,2]
[361736479,1747738261627,-430.0,0.00019726,2]
[361736480,1747738261637,-2019.01,0.00019726,2]
[361736481,1747738261647,-830.49,0.00019726,2]
[361736482,1747738261657,-430.0,0.00019726,2]
[361736483,1747738261667,-844.01,0.00019726,2]
[361736484,1747738261677,-430.0,0.00019726,2]
[361736485,1747738261689,-674.04,0.00019726,2]
[361736486,1747738261700,-775.5,0.00019726,2]
[361736487,1747738261711,-844.73,0.00019726,2]
[361736488,1747738261721,-740.93,0.00019726,2]
[361736489,1747738261730,-926.22,0.00019726,2]
[361736490,1747738261742,-3500.0,0.0001976,2]
[361736491,1747738261751,-9787.0034476,0.00019874,2]
[361736492,1747738261761,-500.0,0.00019973,2]
[361736493,1747738261771,-500.0,0.00019973,2]
[361736494,1747738261780,-500.0,0.00019973,2]
[361736495,1747738261789,-500.0,0.00019973,2]
[361736496,1747738261799,-500.0,0.00019973,2]
[361736497,1747738261809,-500.0,0.00019973,2]
[361736498,1747738261819,-500.0,0.00019973,2]
[361736499,1747738261830,-500.0,0.00019973,2]
[361736500,1747738261839,-500.0,0.00019973,2]
[361736501,1747738261848,-500.0,0.00019973,2]
[361736502,1747738261858,-304.64031185,0.00019973,2]
[361736503,1747738261867,-500.0,0.00019973,2]
[361736504,1747738261880,-531.13787947,0.00019973,2]
[361736505,1747738261891,-500.0,0.00019973,2]
[361736506,1747738261902,-500.0,0.00019973,2]
[361736507,1747738261912,-500.0,0.00019973,2]
[361736508,1747738261923,-500.0,0.00019973,2]
[361736509,1747738261935,-500.0,0.00019973,2]
[361736510,1747738261944,-500.0,0.00019973,2]
[361736511,1747738261955,-166.21443603,0.00019973,2]
[361736512,1747738261966,-271.17776795,0.00019973,2]
[361736513,1747738261976,-500.0,0.00019973,2]
[361736514,1747738261986,-500.0,0.00019973,2]
[361736515,1747738261996,-500.0,0.00019973,2]
[361736516,1747738262006,-500.0,0.00019973,2]
[361736517,1747738262015,-500.0,0.00019973,2]
[361736518,1747738262025,-500.0,0.00019973,2]
[361736519,1747738262034,-500.0,0.00019973,2]
[361736520,1747738262044,-500.0,0.00019973,2]
[361736521,1747738262053,-500.0,0.00019973,2]
[361736522,1747738262062,-438.66019279,0.00019973,2]
[361736523,1747738262071,-500.0,0.00019973,2]
[361736524,1747738262081,-500.0,0.00019973,2]
[361736525,1747738262091,-500.42263913,0.00019973,2]
[361736526,1747738262101,-491.64091141,0.00019973,2]
[361736527,1747738262110,-522.29539963,0.00019973,2]
[361736528,1747738262120,-500.0,0.00019973,2]
[361736529,1747738262130,-500.0,0.00019973,2]
[361736530,1747738262139,-500.0,0.00019973,2]
[361736531,1747738262149,-500.0,0.00019973,2]
[361736532,1747738262158,-500.0,0.00019973,2]
[361736533,1747738262168,-500.0,0.00019973,2]
[361736534,1747738262177,-513.84558489,0.00019973,2]
[361736535,1747738262186,-171.03534053,0.00019973,2]
[361736536,1747738262196,-500.0,0.00019973,2]
[361736537,1747738262206,-500.0,0.00019973,2]
[361736538,1747738262216,-500.0,0.00019973,2]
[361736539,1747738262226,-500.0,0.00019973,2]
[361736540,1747738262236,-500.0,0.00019973,2]
[361736541,1747738262246,-500.0,0.00019973,2]
[361736542,1747738262256,-517.54403976,0.00019973,2]
[361736543,1747738262267,-500.0,0.00019973,2]
[361736544,1747738262277,-500.0,0.00019973,2]
[361736545,1747738262287,-500.0,0.00019973,2]
[361736546,1747738262297,-612.25054698,0.00019973,2]
[361736547,1747738262307,-500.0,0.00019973,2]
[361736548,1747738262317,-500.0,0.00019973,2]
[361736549,1747738262327,-500.0,0.00019973,2]
[361736550,1747738262337,-500.0,0.00019973,2]
[361736551,1747738262347,-500.0,0.00019973,2]
[361736552,1747738262357,-500.0,0.00019973,2]
[361736553,1747738262366,-500.0,0.00019973,2]
[361736554,1747738262376,-500.0,0.00019973,2]
[361736555,1747738262385,-555.88338159,0.00019973,2]
[361736556,1747738262395,-152.15765872,0.00019973,2]
[361736557,1747738262404,-500.0,0.00019973,2]
[361736558,1747738262413,-500.0,0.00019973,2]
[361736559,1747738262423,-500.0,0.00019973,2]
[361736560,1747738262432,-500.0,0.00019973,2]
[361736561,1747738262441,-500.0,0.00019973,2]
[361736562,1747738262451,-500.0,0.00019973,2]
[361736563,1747738262460,-600.0,0.00019973,2]
[361736564,1747738262470,-500.0,0.00019973,2]
[361736565,1747738262480,-500.0,0.00019973,2]
[361736566,1747738262489,-160.0,0.00019999,2]
[361736567,1747738262498,-538.0,0.0002,2]
[361736568,1747738262508,-559.0,0.0002,2]
[361736569,1747738262517,-1678.0,0.0002,2]
[361736570,1747738262527,-1000.0,0.0002,2]
[361736571,1747738262536,-50293.38100031,0.0002,20]
[361736572,1747738262547,-57100.0,0.0002,2]
[361736573,1747738262558,-297.11,0.0002,7]
[361736574,1747738262567,-151.0,0.0002,2]
[361736575,1747738262578,-1000.0,0.0002,20]
[361736576,1747738262587,-83424.0,0.0002,2]
[361736577,1747738262597,-2000.0,0.0002,2]
[361736578,1747738262608,-15843.75074631,0.0002,2]
[361736579,1747738262618,-88013.74399649,0.0002,2]
[361736580,1747738262627,-5000.0,0.0002,2]
[361736581,1747738262637,-267266.75710177,0.0002,2]
[361736582,1747738262646,-320.0,0.0002,5]
[361736583,1747738262656,-430.0,0.0002,2]
[361736584,1747738262666,-363.5080766,0.0002,2]
[361736585,1747738262676,-363.5080766,0.0002,2]
[361736586,1747738262686,-363.5080766,0.0002,2]
[361736587,1747738262695,-363.5080766,0.0002,2]
[361736588,1747738262705,-363.5080766,0.0002,2]
[361736589,1747738262714,-363.5080766,0.0002,2]
[361736590,1747738262724,-363.5080766,0.0002,2]
[361736591,1747738262733,-324.3247084,0.0002,2]
[361736592,1747738262742,-430.0,0.0002,2]
[361736593,1747738262752,-430.0,0.0002,2]
[361736594,1747738262761,-300.0,0.0002,2]
[361736595,1747738262771,-430.0,0.0002,2]
[361736596,1747738262779,-430.0,0.0002,2]
[361736597,1747738262789,-430.0,0.0002,2]
[361736598,1747738262799,-430.0,0.0002,2]
[361736599,1747738262808,-254.65899485,0.0002,2]
[361736600,1747738262817,-1776.74,0.0002,2]
[361736601,1747738262827,-3412.88,0.0002,2]
[361736602,1747738262837,-520.16,0.0002,2]
[361736603,1747738262847,-1930.13,0.0002,2]
[361736604,1747738262858,-1061.63,0.0002,2]
[361736605,1747738262868,-603.79,0.0002,2]
[361736606,1747738262882,-506.36,0.0002,2]
[361736607,1747738263100,-1753.15,0.0002,2]
[361736608,1747738263111,-1305.03,0.0002,2]
[361736609,1747738263120,-430.0,0.0002,2]
[361736610,1747738263130,-691.23,0.0002,2]
[361736611,1747738263139,-1148.42,0.0002,2]
[361736612,1747738263150,-572.24,0.0002,2]
[361736613,1747738263160,-2306.53,0.0002,2]
[361736614,1747738263170,-430.0,0.0002,2]
[361736615,1747738263179,-582.21,0.0002,2]
[361736616,1747738263189,-160.0,0.0002,7]
[361736617,1747738263199,-430.0,0.0002,2]
[361736618,1747738263208,-430.0,0.0002,2]
[361736619,1747738263218,-869.16,0.0002,2]
[361736620,1747738263228,-1275.53,0.0002,2]
[361736621,1747738263237,-596.79,0.0002,2]
[361736622,1747738263247,-430.0,0.0002,2]
[361736623,1747738263258,-958.75,0.0002,2]
[361736624,1747738263267,-215.56785742,0.0002,2]
[361736625,1747738263277,-1444.05,0.0002,2]
[361736626,1747738263288,-430.0,0.0002,2]
[361736627,1747738263298,-812.17,0.0002,2]
[361736628,1747738263421,-573.94,0.0002,2]
[361736629,1747738263432,-852.85,0.0002,2]
[361736630,1747738263441,-594.94,0.0002,2]
[361736631,1747738263452,-1179.22,0.0002,2]
[361736632,1747738263462,-451.17,0.0002,2]
[361736633,1747738263472,-1760.65,0.0002,2]
[361736634,1747738263482,-660.64,0.0002,2]
[361736635,1747738263492,-447.88,0.0002,2]
[361736636,1747738263502,-731.84,0.0002,2]
[361736637,1747738263512,-476.44,0.0002,2]
[361736638,1747738263522,-321.14751424,0.0002,2]
[361736639,1747738263532,-1820.69,0.0002,2]
[361736640,1747738263542,-872.77,0.0002,2]
[361736641,1747738263552,-4745.31,0.0002,2]
[361736642,1747738263562,-527.01,0.0002,2]
[361736643,1747738263573,-5627.3,0.0002,2]
[361736644,1747738263584,-430.0,0.0002,2]
[361736645,1747738263594,-430.0,0.0002,2]
[361736646,1747738263604,-430.0,0.0002,2]
[361736647,1747738263615,-2019.01,0.0002,2]
[361736648,1747738263625,-830.49,0.0002,2]
[361736649,1747738263635,-4000.0,0.0002,4]
[361736650,1747738263645,-430.0,0.0002,2]
[361736651,1747738263655,-844.01,0.0002,2]
[361736652,1747738263666,-430.0,0.0002,2]
[361736653,1747738263677,-157.89,0.0002,2]
[361736654,1747738263687,-157.89,0.0002,2]
[361736655,1747738263697,-674.04,0.0002,2]
[361736656,1747738263708,-775.5,0.0002,2]
[361736657,1747738263718,-844.73,0.0002,2]
[361736658,1747738263728,-740.93,0.0002,2]
[361736659,1747738263738,-926.22,0.0002,2]
[361736660,1747738263748,-14441.76249022,0.00020003,2]
[361736661,1747738263758,-566.40613226,0.00020006,2]
[361736662,1747738263768,-164.054303,0.00020097,4]
[361736663,1747738263778,-160.0,0.00020111,5]
[361736664,1747738263788,-197.031022,0.00020187,2]
[361736665,1747738263798,-547.0,0.0002022,2]
[361736666,1747738263807,-2235.0,0.0002022,2]
[361736667,1747738263817,-707.0,0.0002022,2]
[361736668,1747738263826,-404.0,0.0002022,2]
[361736669,1747738263836,-430.0,0.00020273,2]
[361736670,1747738263846,-430.0,0.00020273,2]
[361736671,1747738263856,-459.21521621,0.00020273,2]
[361736672,1747738263865,-488.91365552,0.00020273,2]
[361736673,1747738263875,-430.0,0.00020273,2]
[361736674,1747738263888,-430.0,0.00020273,2]
[361736675,1747738263898,-430.0,0.00020273,2]
[361736676,1747738263907,-1776.74,0.00020273,2]
[361736677,1747738263918,-3412.88,0.00020273,2]
[361736678,1747738263928,-520.16,0.00020273,2]
[361736679,1747738263938,-1930.13,0.00020273,2]
[361736680,1747738263948,-1061.63,0.00020273,2]
[361736681,1747738263958,-603.79,0.00020273,2]
[361736682,1747738263969,-506.36,0.00020273,2]
[361736683,1747738263979,-1753.15,0.00020273,2]
[361736684,1747738263989,-1305.03,0.00020273,2]
[361736685,1747738263999,-430.0,0.00020273,2]
[361736686,1747738264010,-691.23,0.00020273,2]
[361736687,1747738264019,-1148.42,0.00020273,2]
[361736688,1747738264028,-572.24,0.00020273,2]
[361736689,1747738264038,-2306.53,0.00020273,2]
[361736690,1747738264048,-430.0,0.00020273,2]
[361736691,1747738264057,-582.21,0.00020273,2]
[361736692,1747738264067,-430.0,0.00020273,2]
[361736693,1747738264076,-430.0,0.00020273,2]
[361736694,1747738264086,-869.16,0.00020273,2]
[361736695,1747738264096,-1275.53,0.00020273,2]
[361736696,1747738264106,-596.79,0.00020273,2]
[361736697,1747738264116,-430.0,0.00020273,2]
[361736698,1747738264126,-958.75,0.00020273,2]
[361736699,1747738264135,-1444.05,0.00020273,2]
[361736700,1747738264144,-430.0,0.00020273,2]
[361736701,1747738264155,-812.17,0.00020273,2]
[361736702,1747738264164,-573.94,0.00020273,2]
[361736703,1747738264174,-852.85,0.00020273,2]
[361736704,1747738264183,-594.94,0.00020273,2]
[361736705,1747738264192,-1179.22,0.00020273,2]
[361736706,1747738264202,-451.17,0.00020273,2]
[361736707,1747738264211,-1760.65,0.00020273,2]
[361736708,1747738264221,-660.64,0.00020273,2]
[361736709,1747738264231,-447.88,0.00020273,2]
[361736710,1747738264241,-731.84,0.00020273,2]
[361736711,1747738264251,-476.44,0.00020273,2]
[361736712,1747738264261,-1820.69,0.00020273,2]
[361736713,1747738264271,-872.77,0.00020273,2]
[361736714,1747738264281,-4745.31,0.00020273,2]
[361736715,1747738264290,-527.01,0.00020273,2]
[361736716,1747738264300,-5627.3,0.00020273,2]
[361736717,1747738264310,-396.60040835,0.00020273,2]
[361736718,1747738264320,-430.0,0.00020273,2]
[361736719,1747738264330,-430.0,0.00020273,2]
[361736720,1747738264340,-2019.01,0.00020273,2]
[361736721,1747738264349,-830.49,0.00020273,2]
[361736722,1747738264359,-430.0,0.00020273,2]
[361736723,1747738264368,-844.01,0.00020273,2]
[361736724,1747738264378,-430.0,0.00020273,2]
[361736725,1747738264388,-674.04,0.00020273,2]
[361736726,1747738264398,-775.5,0.00020273,2]
[361736727,1747738264408,-844.73,0.00020273,2]
[361736728,1747738264417,-740.93,0.00020273,2]
[361736729,1747738264427,-926.22,0.00020273,2]
[361736730,1747738264436,-219.0,0.00020274,3]
[361736731,1747738264446,-4000.0,0.00020308,2]
[361736732,1747738264455,-14441.76249022,0.00020314,3]
[361736733,1747738264464,-12640.66806714,0.0002032,3]
[361736734,1747738264474,-894.64583333,0.000204,3]
[361736735,1747738264483,-160.0,0.000204,3]
[361736736,1747738264493,-3000.0,0.00020445,2]
[361736737,1747738264502,-158.28077,0.00020489,3]
[361736738,1747738264512,-9787.0034476,0.0002051,2]
[361736739,1747738264521,-158.28077,0.00020518,4]
[361736740,1747738264530,-158.28077,0.00020519,4]
[361736741,1747738264540,-158.28077,0.0002052,4]
[361736742,1747738264549,-1000.0,0.00020521,2]
[361736743,1747738264559,-351.80132276,0.00020521,2]
[361736744,1747738264568,-1000.82495203,0.00020521,2]
[361736745,1747738264578,-1000.0,0.00020521,2]
[361736746,1747738264587,-1000.0,0.00020521,2]
[361736747,1747738264596,-1000.0,0.00020521,2]
[361736748,1747738264606,-1000.0,0.00020521,2]
[361736749,1747738264616,-560.39940268,0.00020521,2]
[361736750,1747738264625,-1000.0,0.00020521,2]
[361736751,1747738264635,-1000.0,0.00020521,2]
[361736752,1747738264645,-302.47493921,0.00020521,2]
[361736753,1747738264655,-398.29965393,0.00020521,2]
[361736754,1747738264665,-1000.0,0.00020521,2]
[361736755,1747738264675,-415.25685857,0.00020521,2]
[361736756,1747738264685,-1000.0,0.00020521,2]
[361736757,1747738264694,-1000.0,0.00020521,2]
[361736758,1747738264704,-1000.0,0.00020521,2]
[361736759,1747738264713,-1000.0,0.00020521,2]
[361736760,1747738264723,-1000.0,0.00020521,2]
[361736761,1747738264733,-1000.0,0.00020521,2]
[361736762,1747738264742,-1000.0,0.00020521,2]
[361736763,1747738264752,-1000.0,0.00020521,2]
[361736764,1747738264762,-1000.0,0.00020521,2]
[361736765,1747738264772,-1000.0,0.00020521,2]
[361736766,1747738264782,-1000.0,0.00020521,2]
[361736767,1747738264792,-1000.0,0.00020521,2]
[361736768,1747738264802,-1000.0,0.00020521,2]
[361736769,1747738264811,-408.97043587,0.00020521,2]
[361736770,1747738264821,-1000.0,0.00020521,2]
[361736771,1747738264831,-1000.0,0.00020521,2]
[361736772,1747738264840,-1000.0,0.00020521,2]
[361736773,1747738264850,-1076.55594923,0.00020521,2]
[361736774,1747738264860,-1000.0,0.00020521,2]
[361736775,1747738264869,-1000.0,0.00020521,2]
[361736776,1747738264882,-1000.0,0.00020521,2]
[361736777,1747738264892,-1036.45571961,0.00020521,2]
[361736778,1747738264901,-1000.0,0.00020521,2]
[361736779,1747738264910,-785.61166865,0.00020521,2]
[361736780,1747738264920,-512.26337415,0.00020521,2]
[361736781,1747738264928,-1000.0,0.00020521,2]
[361736782,1747738264937,-1000.0,0.00020521,2]